fUSD/lending_fUSD_20250530
["ID","MTS","AMOUNT","RATE_DAILY","PERIOD"]
[363182423,1748616663892,-530.0,0.00022191,2]
[363182424,1748616663901,-420.0,0.00022191,2]
[363182425,1748616663911,-638.5,0.00022191,2]
[363182426,1748616663920,-420.0,0.00022191,2]
[363182427,1748616663934,-420.0,0.00022191,2]
[363182428,1748616663943,-529.49,0.00022191,2]
[363182429,1748616663953,-420.0,0.00022191,2]
[363182430,1748616663966,-422.57603956,0.00022191,2]
[363182431,1748616663976,-654.45,0.00022191,2]
[363182432,1748616663986,-420.0,0.00022191,2]
[363182433,1748616663997,-420.0,0.00022191,2]
[363182434,1748616664008,-420.0,0.00022191,2]
[363182435,1748616664017,-1483.35,0.00022191,2]
[363182436,1748616664027,-420.0,0.00022191,2]
[363182437,1748616664037,-420.0,0.00022191,2]
[363182438,1748616664047,-1269.66,0.00022191,2]
[363182439,1748616664056,-738.85,0.00022191,2]
[363182440,1748616664065,-1012.08,0.00022191,2]
[363182441,1748616664075,-659.19,0.00022191,2]
[363182442,1748616664085,-854.82,0.00022191,2]
[363182443,1748616664094,-222.98908,0.00022191,7]
[363182444,1748616664104,-222.98908,0.00022191,7]
[363182445,1748616664114,-1235.96,0.00022191,2]
[363182446,1748616664124,-222.98908,0.00022191,7]
[363182447,1748616664134,-222.98908,0.00022191,7]
[363182448,1748616664144,-852.51,0.00022191,2]
[363182449,1748616664153,-422.28357498,0.00022191,2]
[363182450,1748616664163,-420.0,0.00022191,2]
[363182451,1748616664173,-789.33,0.00022191,2]
[363182452,1748616664185,-732.12,0.00022191,2]
[363182453,1748616664194,-697.78,0.00022191,2]
[363182454,1748616664204,-420.0,0.00022191,2]
[363182455,1748616664213,-1260.71,0.00022191,2]
[363182456,1748616664223,-420.0,0.00022191,2]
[363182457,1748616664232,-420.0,0.00022191,2]
[363182458,1748616664243,-859.17,0.00022191,2]
[363182459,1748616664253,-690.29,0.00022191,2]
[363182460,1748616664263,-1490.47,0.00022191,2]
[363182461,1748616664273,-505.88206369,0.00022191,2]
[363182462,1748616664283,-1029.33,0.00022191,2]
[363182463,1748616664294,-495.36874229,0.00022191,2]
[363182464,1748616664304,-499.6,0.00022191,2]
[363182465,1748616664313,-422.50052636,0.00022191,2]
[363182466,1748616664322,-160.0,0.00022191,2]
[363182467,1748616664331,-1074.41,0.00022191,2]
[363182468,1748616664341,-420.0,0.00022191,2]
[363182469,1748616664350,-597.99,0.00022191,2]
[363182470,1748616664360,-183.64362466,0.00022191,2]
[363182471,1748616664371,-471.46,0.00022191,2]
[363182472,1748616664381,-585.06,0.00022191,2]
[363182473,1748616664390,-569.42,0.00022191,2]
[363182474,1748616664401,-420.0,0.00022191,2]
[363182475,1748616664410,-589.76,0.00022191,2]
[363182476,1748616664419,-420.0,0.00022191,2]
[363182477,1748616664430,-420.0,0.00022191,2]
[363182478,1748616664440,-420.0,0.00022191,2]
[363182479,1748616664449,-420.0,0.00022191,2]
[363182480,1748616664459,-420.0,0.00022191,2]
[363182481,1748616664469,-1166.51,0.00022191,2]
[363182482,1748616664479,-420.0,0.00022191,2]
[363182483,1748616664489,-425.71594428,0.00022191,2]
[363182484,1748616664499,-2587.91,0.00022191,2]
[363182485,1748616664511,-1236.24,0.00022191,2]
[363182486,1748616664520,-420.0,0.00022191,2]
[363182487,1748616664535,-598.97,0.00022191,2]
[363182488,1748616664554,-652.6,0.00022191,2]
[363182489,1748616664574,-151.0,0.00022191,7]
[363182490,1748616664595,-1378.2,0.00022191,2]
[363182491,1748616664612,-505.79703557,0.00022191,2]
[363182492,1748616664631,-160.0,0.00022191,2]
[363182493,1748616664651,-1173.13,0.00022191,2]
[363182494,1748616664672,-1115.86,0.00022191,2]
[363182495,1748616664692,-420.0,0.00022191,2]
[363182496,1748616664710,-420.0,0.00022191,2]
[363182497,1748616664730,-420.0,0.00022191,2]
[363182498,1748616664745,-904.45,0.00022191,2]
[363182499,1748616664764,-1056.15,0.00022191,2]
[363182500,1748616664776,-420.0,0.00022191,2]
[363182501,1748616664795,-420.0,0.00022191,2]
[363182502,1748616664809,-420.0,0.00022191,2]
[363182503,1748616664825,-420.0,0.00022191,2]
[363182504,1748616664840,-641.81,0.00022191,2]
[363182505,1748616664871,-529.44575093,0.00022191,2]
[363182506,1748616664894,-420.0,0.00022191,2]
[363182507,1748616664914,-420.0,0.00022191,2]
[363182508,1748616664933,-420.0,0.00022191,2]
[363182509,1748616664955,-682.0,0.00022191,2]
[363182510,1748616664976,-420.0,0.00022191,2]
[363182511,1748616664993,-420.0,0.00022191,2]
[363182512,1748616665018,-420.0,0.00022191,2]
[363182513,1748616665035,-569.2,0.00022191,2]
[363182514,1748616665053,-578.68,0.00022191,2]
[363182515,1748616665070,-421.95374729,0.00022191,2]
[363182516,1748616665088,-420.0,0.00022191,2]
[363182517,1748616665104,-420.0,0.00022191,2]
[363182518,1748616665119,-716.28,0.00022191,2]
[363182519,1748616665136,-163.304967,0.00022191,7]
[363182520,1748616665151,-151.0,0.00022191,7]
[363182521,1748616665168,-163.304967,0.00022191,7]
[363182522,1748616665186,-151.0,0.00022191,7]
[363182523,1748616665201,-151.0,0.00022191,7]
[363182524,1748616665216,-448.3,0.00022191,2]
[363182525,1748616665232,-420.0,0.00022191,2]
[363182526,1748616665248,-581.94,0.00022191,2]
[363182527,1748616665264,-163.304967,0.00022191,7]
[363182528,1748616665279,-163.304967,0.00022191,7]
[363182529,1748616665295,-420.0,0.00022191,2]
[363182530,1748616665311,-1574.1,0.00022191,2]
[363182531,1748616665326,-508.74,0.00022191,2]
[363182532,1748616665341,-420.0,0.00022191,2]
[363182533,1748616665357,-2109.26,0.00022191,2]
[363182534,1748616665374,-420.0,0.00022191,2]
[363182535,1748616665389,-420.0,0.00022191,2]
[363182536,1748616665406,-1296.35,0.00022191,2]
[363182537,1748616665422,-420.0,0.00022191,2]
[363182538,1748616665441,-586.0,0.00022191,2]
[363182539,1748616665457,-420.0,0.00022191,2]
[363182540,1748616665473,-151.0,0.00022191,7]
[363182541,1748616665490,-151.0,0.00022191,7]
[363182542,1748616665506,-420.0,0.00022191,2]
[363182543,1748616665522,-194.11227228,0.00022191,2]
[363182544,1748616665537,-420.0,0.00022191,2]
[363182545,1748616665552,-420.0,0.00022191,2]
[363182546,1748616665569,-420.0,0.00022191,2]
[363182547,1748616665584,-1221.28,0.00022191,2]
[363182548,1748616665600,-420.0,0.00022191,2]
[363182549,1748616665615,-503.28,0.00022191,2]
[363182550,1748616665631,-420.0,0.00022191,2]
[363182551,1748616665646,-151.0,0.00022191,7]
[363182552,1748616665661,-151.0,0.00022191,7]
[363182553,1748616665677,-151.0,0.00022191,7]
[363182554,1748616665693,-420.0,0.00022191,2]
[363182555,1748616665708,-151.0,0.00022191,7]
[363182556,1748616665723,-151.0,0.00022191,7]
[363182557,1748616665738,-151.0,0.00022191,7]
[363182558,1748616665754,-420.0,0.00022191,2]
[363182559,1748616665769,-420.0,0.00022191,2]
[363182560,1748616665785,-427.36,0.00022191,2]
[363182561,1748616665800,-160.0,0.00022191,2]
[363182562,1748616665815,-1823.7,0.00022191,2]
[363182563,1748616665831,-601.59,0.00022191,2]
[363182564,1748616665846,-422.06665195,0.00022191,2]
[363182565,1748616665861,-420.0,0.00022191,2]
[363182566,1748616665877,-1180.79,0.00022191,2]
[363182567,1748616665893,-735.86,0.00022191,2]
[363182568,1748616665909,-420.0,0.00022191,2]
[363182569,1748616665924,-420.0,0.00022191,2]
[363182570,1748616665940,-421.44094514,0.00022191,2]
[363182571,1748616665958,-1716.620633,0.00022191,7]
[363182572,1748616665976,-1716.620633,0.00022191,7]
[363182573,1748616665992,-711.9,0.00022191,2]
[363182574,1748616666003,-420.0,0.00022191,2]
[363182575,1748616666014,-1716.620633,0.00022191,7]
[363182576,1748616666024,-420.0,0.00022191,2]
[363182577,1748616666035,-1716.620633,0.00022191,7]
[363182578,1748616666045,-1100.72,0.00022191,2]
[363182579,1748616666055,-658.42,0.00022191,2]
[363182580,1748616666065,-503.43612186,0.00022191,2]
[363182581,1748616666074,-606.69,0.00022191,2]
[363182582,1748616666084,-504.93249883,0.00022191,2]
[363182583,1748616666094,-420.0,0.00022191,2]
[363182584,1748616666104,-223.85,0.00022191,2]
[363182585,1748616666114,-890.51,0.00022191,2]
[363182586,1748616666124,-922.89,0.00022191,2]
[363182587,1748616666133,-420.0,0.00022191,2]
[363182588,1748616666142,-420.0,0.00022191,2]
[363182589,1748616666152,-420.0,0.00022191,2]
[363182590,1748616666162,-427.35247355,0.00022191,2]
[363182591,1748616666172,-420.0,0.00022191,2]
[363182592,1748616666182,-420.0,0.00022191,2]
[363182593,1748616666193,-420.0,0.00022191,2]
[363182594,1748616666202,-420.0,0.00022191,2]
[363182595,1748616666212,-420.0,0.00022191,2]
[363182596,1748616666222,-420.0,0.00022191,2]
[363182597,1748616666232,-420.0,0.00022191,2]
[363182598,1748616666242,-420.0,0.00022191,2]
[363182599,1748616666251,-610.77,0.00022191,2]
[363182600,1748616666261,-488.61,0.00022191,2]
[363182601,1748616666271,-420.0,0.00022191,2]
[363182602,1748616666720,-420.0,0.00022191,2]
[363182603,1748616666759,-420.0,0.00022191,2]
[363182604,1748616666779,-151.0,0.00022191,7]
[363182605,1748616666803,-439.62107707,0.00022191,2]
[363182606,1748616666812,-426.4446877,0.00022191,2]
[363182607,1748616666822,-151.0,0.00022191,7]
[363182608,1748616666831,-420.0,0.00022191,2]
[363182609,1748616666841,-151.0,0.00022191,7]
[363182610,1748616666850,-1314.68,0.00022191,2]
[363182611,1748616666861,-1455.68,0.00022191,2]
[363182612,1748616666872,-600.02,0.00022191,2]
[363182613,1748616666883,-547.9,0.00022191,2]
[363182614,1748616666894,-420.0,0.00022191,2]
[363182615,1748616666904,-420.0,0.00022191,2]
[363182616,1748616666914,-420.0,0.00022191,2]
[363182617,1748616666923,-420.0,0.00022191,2]
[363182618,1748616666934,-1269.76,0.00022191,2]
[363182619,1748616666943,-420.0,0.00022191,2]
[363182620,1748616666953,-420.0,0.00022191,2]
[363182621,1748616666966,-460.2,0.00022191,2]
[363182622,1748616666976,-420.0,0.00022191,2]
[363182623,1748616666985,-1281.1,0.00022191,2]
[363182624,1748616666995,-420.0,0.00022191,2]
[363182625,1748616667005,-420.0,0.00022191,2]
[363182626,1748616667015,-420.0,0.00022191,2]
[363182627,1748616667024,-758.15,0.00022191,2]
[363182628,1748616667034,-420.0,0.00022191,2]
[363182629,1748616667044,-983.34,0.00022191,2]
[363182630,1748616667054,-647.55,0.00022191,2]
[363182631,1748616667064,-501.71,0.00022191,2]
[363182632,1748616667073,-420.0,0.00022191,2]
[363182633,1748616667083,-420.0,0.00022191,2]
[363182634,1748616667093,-803.24,0.00022191,2]
[363182635,1748616667102,-1218.32,0.00022191,2]
[363182636,1748616667111,-746.12,0.00022191,2]
[363182637,1748616667121,-420.0,0.00022191,2]
[363182638,1748616667130,-420.0,0.00022191,2]
[363182639,1748616667140,-461.01,0.00022191,2]
[363182640,1748616667150,-659.05,0.00022191,2]
[363182641,1748616667159,-1905.82,0.00022191,2]
[363182642,1748616667169,-751.93,0.00022191,2]
[363182643,1748616667180,-420.0,0.00022191,2]
[363182644,1748616667190,-1623.68,0.00022191,2]
[363182645,1748616667200,-151.0,0.00022191,7]
[363182646,1748616667209,-151.0,0.00022191,7]
[363182647,1748616667219,-488.51,0.00022191,2]
[363182648,1748616667228,-420.0,0.00022191,2]
[363182649,1748616667238,-1065.45,0.00022191,2]
[363182650,1748616667247,-420.0,0.00022191,2]
[363182651,1748616667257,-420.0,0.00022191,2]
[363182652,1748616667266,-420.0,0.00022191,2]
[363182653,1748616667276,-1781.16,0.00022191,2]
[363182654,1748616667285,-420.0,0.00022191,2]
[363182655,1748616667295,-420.0,0.00022191,2]
[363182656,1748616667304,-420.0,0.00022191,2]
[363182657,1748616667314,-2016.38,0.00022191,2]
[363182658,1748616667323,-420.0,0.00022191,2]
[363182659,1748616667333,-420.0,0.00022191,2]
[363182660,1748616667342,-420.0,0.00022191,2]
[363182661,1748616667351,-420.0,0.00022191,2]
[363182662,1748616667361,-420.0,0.00022191,2]
[363182663,1748616667371,-420.0,0.00022191,2]
[363182664,1748616667381,-447.72,0.00022191,2]
[363182665,1748616667391,-483.94,0.00022191,2]
[363182666,1748616667400,-617.07,0.00022191,2]
[363182667,1748616667409,-420.0,0.00022191,2]
[363182668,1748616667419,-520.93,0.00022191,2]
[363182669,1748616667429,-420.0,0.00022191,2]
[363182670,1748616667439,-1080.13,0.00022191,2]
[363182671,1748616667449,-10201.81,0.00022191,2]
[363182672,1748616667458,-420.0,0.00022191,2]
[363182673,1748616667470,-420.0,0.00022191,2]
[363182674,1748616667479,-624.51,0.00022191,2]
[363182675,1748616667488,-634.02,0.00022191,2]
[363182676,1748616667498,-420.0,0.00022191,2]
[363182677,1748616667508,-1094.85,0.00022191,2]
[363182678,1748616667518,-464.14,0.00022191,2]
[363182679,1748616667528,-420.0,0.00022191,2]
[363182680,1748616667538,-482.08793967,0.00022191,2]
[363182681,1748616667547,-3116.89,0.00022191,2]
[363182682,1748616667556,-420.0,0.00022191,2]
[363182683,1748616667566,-1542.99,0.00022191,2]
[363182684,1748616667575,-420.0,0.00022191,2]
[363182685,1748616667584,-420.0,0.00022191,2]
[363182686,1748616667594,-420.0,0.00022191,2]
[363182687,1748616667603,-651.07,0.00022191,2]
[363182688,1748616667613,-420.0,0.00022191,2]
[363182689,1748616667622,-151.0,0.00022191,7]
[363182690,1748616667631,-154.121012,0.00022191,7]
[363182691,1748616667641,-420.0,0.00022191,2]
[363182692,1748616667650,-420.0,0.00022191,2]
[363182693,1748616667659,-740.72,0.00022191,2]
[363182694,1748616667669,-420.0,0.00022191,2]
[363182695,1748616667678,-1875.53,0.00022191,2]
[363182696,1748616667688,-420.0,0.00022191,2]
[363182697,1748616667698,-420.0,0.00022191,2]
[363182698,1748616667708,-420.0,0.00022191,2]
[363182699,1748616667717,-151.0,0.00022191,7]
[363182700,1748616667727,-960.55,0.00022191,2]
[363182701,1748616667736,-151.0,0.00022191,7]
[363182702,1748616667745,-508.91,0.00022191,2]
[363182703,1748616667755,-151.0,0.00022191,7]
[363182704,1748616667764,-420.0,0.00022191,2]
[363182705,1748616667774,-479.63,0.00022191,2]
[363182706,1748616667783,-862.82,0.00022191,2]
[363182707,1748616667793,-420.0,0.00022191,2]
[363182708,1748616667803,-491.86,0.00022191,2]
[363182709,1748616667812,-500.38,0.00022191,2]
[363182710,1748616667823,-420.0,0.00022191,2]
[363182711,1748616667833,-421.21367918,0.00022191,2]
[363182712,1748616667844,-420.0,0.00022191,2]
[363182713,1748616667853,-1013.34,0.00022191,2]
[363182714,1748616667863,-420.0,0.00022191,2]
[363182715,1748616667873,-420.0,0.00022191,2]
[363182716,1748616667883,-1612.35,0.00022191,2]
[363182717,1748616667892,-827.18,0.00022191,2]
[363182718,1748616667902,-392.72951752,0.00022191,2]
[363182719,1748616667912,-420.0,0.00022191,2]
[363182720,1748616667921,-420.0,0.00022191,2]
[363182721,1748616667930,-2041.07,0.00022191,2]
[363182722,1748616667940,-1140.43,0.00022191,2]
[363182723,1748616667951,-1503.44,0.00022191,2]
[363182724,1748616667963,-420.0,0.00022191,2]
[363182725,1748616667973,-420.0,0.00022191,2]
[363182726,1748616667982,-420.0,0.00022191,2]
[363182727,1748616667991,-420.0,0.00022191,2]
[363182728,1748616668002,-1647.86,0.00022191,2]
[363182729,1748616668012,-277.28,0.00022191,2]
[363182730,1748616668021,-420.0,0.00022191,2]
[363182731,1748616668030,-460.93,0.00022191,2]
[363182732,1748616668041,-420.0,0.00022191,2]
[363182733,1748616668052,-420.0,0.00022191,2]
[363182734,1748616668061,-1021.47,0.00022191,2]
[363182735,1748616668071,-524.86588664,0.00022191,2]
[363182736,1748616668080,-829.02,0.00022191,2]
[363182737,1748616668090,-12334.43,0.00022191,2]
[363182738,1748616668100,-1118.14,0.00022191,2]
[363182739,1748616668109,-524.62,0.00022191,2]
[363182740,1748616668119,-420.0,0.00022191,2]
[363182741,1748616668128,-145017.72,0.00022191,2]
[363182742,1748616668138,-1486.5,0.00022191,2]
[363182743,1748616668147,-420.0,0.00022191,2]
[363182744,1748616668156,-420.0,0.00022191,2]
[363182745,1748616668166,-420.0,0.00022191,2]
[363182746,1748616668175,-420.0,0.00022191,2]
[363182747,1748616668186,-420.0,0.00022191,2]
[363182748,1748616668196,-1630.49,0.00022191,2]
[363182749,1748616668206,-420.0,0.00022191,2]
[363182750,1748616668215,-633.9,0.00022191,2]
[363182751,1748616668225,-1214.35,0.00022191,2]
[363182752,1748616668234,-420.0,0.00022191,2]
[363182753,1748616668243,-3955.66,0.00022191,2]
[363182754,1748616668253,-420.0,0.00022191,2]
[363182755,1748616668262,-741.57,0.00022191,2]
[363182756,1748616668271,-420.0,0.00022191,2]
[363182757,1748616668281,-595.93,0.00022191,2]
[363182758,1748616668290,-420.0,0.00022191,2]
[363182759,1748616668299,-681.91,0.00022191,2]
[363182760,1748616668308,-420.0,0.00022191,2]
[363182761,1748616668317,-5907.64,0.00022191,2]
[363182762,1748616668327,-425.7694653,0.00022191,2]
[363182763,1748616668336,-755.13,0.00022191,2]
[363182764,1748616668346,-1270.24,0.00022191,2]
[363182765,1748616668355,-503.80554401,0.00022191,2]
[363182766,1748616668364,-1021.88,0.00022191,2]
[363182767,1748616668373,-1119.11,0.00022191,2]
[363182768,1748616668383,-420.0,0.00022191,2]
[363182769,1748616668392,-420.0,0.00022191,2]
[363182770,1748616668401,-1146.75,0.00022191,2]
[363182771,1748616668411,-420.0,0.00022191,2]
[363182772,1748616668420,-929.6,0.00022191,2]
[363182773,1748616668432,-420.0,0.00022191,2]
[363182774,1748616668441,-420.0,0.00022191,2]
[363182775,1748616668451,-420.0,0.00022191,2]
[363182776,1748616668460,-513.97,0.00022191,2]
[363182777,1748616668469,-7943.19,0.00022191,2]
[363182778,1748616668479,-38822.61,0.00022191,2]
[363182779,1748616668489,-783.78,0.00022191,2]
[363182780,1748616668499,-514.16,0.00022191,2]
[363182781,1748616668508,-684.04,0.00022191,2]
[363182782,1748616668517,-420.0,0.00022191,2]
[363182783,1748616668527,-420.0,0.00022191,2]
[363182784,1748616668536,-1567.32,0.00022191,2]
[363182785,1748616668545,-785.99,0.00022191,2]
[363182786,1748616668555,-420.0,0.00022191,2]
[363182787,1748616668564,-420.0,0.00022191,2]
[363182788,1748616668574,-1037.35,0.00022191,2]
[363182789,1748616668584,-151.0,0.00022191,7]
[363182790,1748616668593,-151.0,0.00022191,7]
[363182791,1748616668603,-1298.52,0.00022191,2]
[363182792,1748616668612,-286.967984,0.00022191,7]
[363182793,1748616668621,-420.0,0.00022191,2]
[363182794,1748616668630,-420.0,0.00022191,2]
[363182795,1748616668640,-15092.91,0.00022191,2]
[363182796,1748616668650,-420.0,0.00022191,2]
[363182797,1748616668659,-500.0,0.00022191,2]
[363182798,1748616668668,-420.0,0.00022191,2]
[363182799,1748616668678,-3324.29,0.00022191,2]
[363182800,1748616668692,-420.0,0.00022191,2]
[363182801,1748616668701,-420.0,0.00022191,2]
[363182802,1748616668711,-1454.98,0.00022191,2]
[363182803,1748616668720,-420.0,0.00022191,2]
[363182804,1748616668729,-598.0,0.00022191,2]
[363182805,1748616668739,-420.0,0.00022191,2]
[363182806,1748616668748,-1690.76,0.00022191,2]
[363182807,1748616668757,-420.0,0.00022191,2]
[363182808,1748616668767,-420.0,0.00022191,2]
[363182809,1748616668777,-420.0,0.00022191,2]
[363182810,1748616668786,-420.0,0.00022191,2]
[363182811,1748616668795,-245.99280307,0.00022191,2]
[363182812,1748616668805,-420.0,0.00022191,2]
[363182813,1748616668814,-2056.94,0.00022191,2]
[363182814,1748616668823,-3564.88,0.00022191,2]
[363182815,1748616668833,-420.0,0.00022191,2]
[363182816,1748616668843,-420.0,0.00022191,2]
[363182817,1748616668852,-420.0,0.00022191,2]
[363182818,1748616668861,-709.84,0.00022191,2]
[363182819,1748616668871,-3077.8,0.00022191,2]
[363182820,1748616668881,-2148.94,0.00022191,2]
[363182821,1748616668890,-500.0,0.00022191,2]
[363182822,1748616668899,-1128.16,0.00022191,2]
[363182823,1748616668909,-11937.18,0.00022191,2]
[363182824,1748616668918,-444.35,0.00022191,2]
[363182825,1748616668928,-2388.17,0.00022191,2]
[363182826,1748616668940,-3426.52,0.00022191,2]
[363182827,1748616668950,-1831.04,0.00022191,2]
[363182828,1748616668962,-420.0,0.00022191,2]
[363182829,1748616668971,-420.0,0.00022191,2]
[363182830,1748616668981,-420.0,0.00022191,2]
[363182831,1748616668993,-420.0,0.00022191,2]
[363182832,1748616669002,-2509.24,0.00022191,2]
[363182833,1748616669012,-996.46,0.00022191,2]
[363182834,1748616669021,-420.0,0.00022191,2]
[363182835,1748616669031,-420.0,0.00022191,2]
[363182836,1748616669045,-1167.46,0.00022191,2]
[363182837,1748616669055,-420.0,0.00022191,2]
[363182838,1748616669065,-1396.36,0.00022191,2]
[363182839,1748616669075,-802.68,0.00022191,2]
[363182840,1748616669085,-420.0,0.00022191,2]
[363182841,1748616669095,-420.0,0.00022191,2]
[363182842,1748616669105,-420.0,0.00022191,2]
[363182843,1748616669114,-1414.34,0.00022191,2]
[363182844,1748616669124,-1623.73,0.00022191,2]
[363182845,1748616669134,-423.35334085,0.00022191,2]
[363182846,1748616669143,-837.57,0.00022191,2]
[363182847,1748616669153,-511.38,0.00022191,2]
[363182848,1748616669163,-420.0,0.00022191,2]
[363182849,1748616669173,-420.0,0.00022191,2]
[363182850,1748616669186,-420.0,0.00022191,2]
[363182851,1748616669198,-7747.44,0.00022191,2]
[363182852,1748616669207,-1609.98,0.00022191,2]
[363182853,1748616669216,-3439.35,0.00022191,2]
[363182854,1748616669226,-160.0,0.00022191,2]
[363182855,1748616669236,-447.12,0.00022191,2]
[363182856,1748616669246,-3324.55,0.00022191,2]
[363182857,1748616669256,-1014.31,0.00022191,2]
[363182858,1748616669266,-420.0,0.00022191,2]
[363182859,1748616669275,-1444.59,0.00022191,2]
[363182860,1748616669285,-420.0,0.00022191,2]
[363182861,1748616669295,-420.0,0.00022191,2]
[363182862,1748616669306,-1364.37,0.00022191,2]
[363182863,1748616669315,-1959.61,0.00022191,2]
[363182864,1748616669325,-684.78,0.00022191,2]
[363182865,1748616669335,-500.0,0.00022191,2]
[363182866,1748616669345,-420.0,0.00022191,2]
[363182867,1748616669355,-1546.44,0.00022191,2]
[363182868,1748616669365,-3822.65,0.00022191,2]
[363182869,1748616669375,-1111.4,0.00022191,2]
[363182870,1748616669385,-451.26,0.00022191,2]
[363182871,1748616669395,-420.0,0.00022191,2]
[363182872,1748616669405,-1605.55,0.00022191,2]
[363182873,1748616669415,-420.0,0.00022191,2]
[363182874,1748616669425,-503.27696212,0.00022191,2]
[363182875,1748616669438,-7861.64,0.00022191,2]
[363182876,1748616669448,-4355.85,0.00022191,2]
[363182877,1748616669459,-500.0,0.00022191,2]
[363182878,1748616669469,-2872.74,0.00022191,2]
[363182879,1748616669479,-1045.92,0.00022191,2]
[363182880,1748616669488,-3688.27,0.00022191,2]
[363182881,1748616669499,-420.0,0.00022191,2]
[363182882,1748616669509,-804.19,0.00022191,2]
[363182883,1748616669520,-731.75,0.00022191,2]
[363182884,1748616669530,-8133.33,0.00022191,2]
[363182885,1748616669540,-4637.46,0.00022191,2]
[363182886,1748616669550,-784.27,0.00022191,2]
[363182887,1748616669560,-420.0,0.00022191,2]
[363182888,1748616669570,-420.0,0.00022191,2]
[363182889,1748616669580,-477.61,0.00022191,2]
[363182890,1748616669590,-300.0,0.00022191,2]
[363182891,1748616669600,-420.0,0.00022191,2]
[363182892,1748616669610,-688.18,0.00022191,2]
[363182893,1748616669620,-420.0,0.00022191,2]
[363182894,1748616669629,-750.82,0.00022191,2]
[363182895,1748616669639,-420.0,0.00022191,2]
[363182896,1748616669650,-1187.39,0.00022191,2]
[363182897,1748616669660,-420.0,0.00022191,2]
[363182898,1748616669670,-420.0,0.00022191,2]
[363182899,1748616669683,-1127.25,0.00022191,2]
[363182900,1748616669693,-1107.33,0.00022191,2]
[363182901,1748616669703,-420.0,0.00022191,2]
[363182902,1748616669713,-420.0,0.00022191,2]
[363182903,1748616669723,-540.97,0.00022191,2]
[363182904,1748616669732,-905.07,0.00022191,2]
[363182905,1748616669742,-420.0,0.00022191,2]
[363182906,1748616669752,-1075.66,0.00022191,2]
[363182907,1748616669763,-439.16,0.00022191,2]
[363182908,1748616669773,-420.0,0.00022191,2]
[363182909,1748616669783,-2589.68,0.00022191,2]
[363182910,1748616669793,-420.0,0.00022191,2]
[363182911,1748616669803,-2189.84,0.00022191,2]
[363182912,1748616669814,-4096.99,0.00022191,2]
[363182913,1748616669824,-4287.96,0.00022191,2]
[363182914,1748616669834,-1690.88,0.00022191,2]
[363182915,1748616669844,-578.21,0.00022191,2]
[363182916,1748616669854,-1548.49,0.00022191,2]
[363182917,1748616669864,-420.0,0.00022191,2]
[363182918,1748616669874,-1823.18,0.00022191,2]
[363182919,1748616669884,-465.68,0.00022191,2]
[363182920,1748616669895,-420.0,0.00022191,2]
[363182921,1748616669905,-1751.91,0.00022191,2]
[363182922,1748616669916,-420.0,0.00022191,2]